bitfinex/quotes_ETHUSD_20220117
["timestamp","ask_amount","ask_price","bid_price","bid_amount"]
[1642455182330,1.41194672,3169.7,3169.5,0.04526705]
[1642455182621,1.41194672,3169.7,3169.6,4.22047337]
[1642455182810,2.1175973,3169.9,3169.6,4.22047337]
[1642455182811,1.41194672,3169.9,3169.7,1.17404373]
[1642455183013,1.41194672,3169.9,3169.6,1.64727337]
[1642455183418,1.41194672,3169.9,3169.6,3.14504177]
[1642455183714,1.41194672,3170.0,3169.7,0.79546739]
[1642455183918,1.41194672,3170.0,3169.7,0.7884]
[1642455184116,1.41478884,3170.0,3169.7,0.7884]
[1642455184314,1.41478884,3170.0,3169.8,0.05045824]
[1642455184725,1.41194672,3169.9,3169.8,0.05045824]
[1642455184965,1.41194672,3169.9,3169.7,4.69751447]
[1642455185366,0.00170527,3169.8,3169.7,4.69751447]
[1642455185766,0.00170527,3169.8,3169.7,0.37949184]
[1642455186382,0.00170527,3169.8,3169.7,1.16788184]
[1642455186782,0.00170527,3169.8,3169.7,1.95628184]
[1642455186966,0.00170527,3169.8,3169.7,1.16788184]
[1642455187166,0.00170527,3169.8,3169.7,0.30901847]
[1642455187366,0.00170527,3169.8,3169.6,7.0187308]
[1642455187790,0.00113685,3169.7,3169.6,7.0187308]
[1642455188374,0.00113685,3169.7,3169.6,8.58257238]
[1642455188624,0.00113685,3169.7,3169.6,7.0187308]
[1642455189231,0.00113685,3169.7,3169.6,7.0164992]
[1642455190036,0.00113685,3169.7,3169.6,8.13440192]
[1642455191018,0.00113685,3169.7,3169.6,8.43440192]
[1642455195773,0.00113685,3169.7,3169.6,8.13440192]
[1642455198018,3.8230824,3170.2,3169.6,8.13440192]
[1642455198420,0.00227369,3170.1,3169.6,8.13440192]
[1642455198643,0.00227369,3170.1,3169.6,8.13217032]
[1642455198819,0.00170527,3170.0,3169.6,8.13217032]
[1642455199218,0.00113685,3169.9,3169.6,8.13217032]
[1642455200662,0.00113685,3169.9,3169.6,7.0142676]
[1642455201074,0.00113685,3169.9,3169.0,0.00170527]
[1642455201075,18.2,3169.8,3169.0,0.00170527]
[1642455201274,0.01213275,3169.5,3169.0,0.00170527]
[1642455201469,1.41759422,3169.4,3168.9,0.00454739]
[1642455201664,1.41759422,3169.4,3168.1,0.00909478]
[1642455201867,0.01213275,3169.5,3168.1,0.00909478]
[1642455202265,0.01213275,3169.5,3169.4,2.0]
[1642455202666,0.01213275,3169.5,3169.4,2.00170527]
[1642455202863,0.01213275,3169.5,3168.4,3.78874654]
[1642455203093,10.45,3169.4,3168.0,0.46186607]
[1642455203265,10.45,3169.4,3168.5,0.00511581]
[1642455203733,13.14873423,3169.4,3168.5,0.00511581]
[1642455204325,2.38202335,3169.2,3168.5,0.00511581]
[1642455204924,2.38202335,3169.2,3168.6,0.03130292]
[1642455205226,0.54000847,3169.3,3168.5,0.00511581]
[1642455205227,1.21156661,3168.7,3168.5,0.00511581]
[1642455205326,9.32920847,3169.3,3168.7,0.00174737]
[1642455205527,5.47850847,3169.3,3168.2,0.03005525]
[1642455205727,0.00109475,3169.2,3168.2,0.00458948]
[1642455205934,0.00109475,3169.2,3168.3,0.00402106]
[1642455206125,0.00109475,3169.2,3168.2,0.00458948]
[1642455206337,1.31100931,3168.7,3168.2,0.00458948]
[1642455206731,1.31100931,3168.7,3168.3,1.32012799]
[1642455206928,0.54000847,3169.1,3168.4,0.04295656]
[1642455207129,0.54000847,3169.1,3168.4,0.00345264]
[1642455207376,0.54000847,3169.1,3168.3,1.2730122]
[1642455207673,0.00284211,3169.0,3168.3,1.2730122]
[1642455208065,0.00227369,3168.9,3168.4,0.78881]
[1642455208260,0.00227369,3168.9,3168.5,1.60932934]
[1642455208561,0.00170527,3168.8,3168.5,1.5774]
[1642455208761,0.00170527,3168.8,3168.5,2.36619]
[1642455208964,0.00113684,3168.7,3168.5,2.36619]
[1642455209366,0.00227369,3168.9,3168.5,2.36619]
[1642455209767,0.00170527,3168.8,3168.5,2.36619]
[1642455210202,0.00113684,3168.7,3168.5,2.36619]
[1642455210629,0.00227369,3168.9,3168.5,2.43665796]
[1642455210767,0.00227369,3168.9,3168.7,0.0491251]
[1642455210987,0.00170527,3168.8,3168.6,1.5773]
[1642455211419,0.00113684,3168.7,3168.6,8.90909796]
[1642455212621,0.00113684,3168.7,3168.6,10.48635106]
[1642455212849,0.00113684,3168.7,3168.6,22.42648414]
[1642455213024,2.69873423,3169.2,3168.8,0.78859]
[1642455213223,2.69873423,3169.2,3168.8,4.59732408]
[1642455213428,0.0022737,3169.1,3168.9,2.36574]
[1642455213851,0.00170527,3169.0,3168.9,2.36574]
[1642455214023,0.00170527,3169.0,3168.9,3.49952772]
[1642455214626,0.00170527,3169.0,3168.9,4.28809842]
[1642455215272,0.00170527,3169.0,3168.9,2.71093842]
[1642455216668,0.00170527,3169.0,3168.9,6.50946021]
[1642455217569,0.00170527,3169.0,3168.9,6.6629875]
[1642455217771,0.00170527,3169.0,3168.9,2.71093842]
[1642455222021,0.00170527,3169.0,3168.9,1.5771507]
[1642455222229,0.00170527,3169.0,3168.3,5.5208174]
[1642455222467,1.33543163,3168.4,3168.3,3.1549774]
[1642455222670,1.33543163,3168.4,3168.1,0.024786]
[1642455223067,1.33543163,3168.4,3168.2,0.00284211]
[1642455223493,1.41353987,3168.3,3168.2,0.00284211]
[1642455227651,1.33543163,3168.4,3168.2,0.00284211]
[1642455227814,1.33543163,3168.4,3168.2,0.07305781]
[1642455228216,1.33543163,3168.4,3168.3,0.00227369]
[1642455229099,0.00113685,3168.9,3168.4,0.06414303]
[1642455229420,0.00113685,3168.9,3168.5,0.00113684]
[1642455229861,0.00113685,3168.9,3168.4,0.00170527]
[1642455230065,7.65657005,3168.8,3168.4,0.00170527]
[1642455230879,1.37795241,3168.7,3168.4,0.00170527]
[1642455231078,6.3118,3168.6,3168.4,0.00170527]
[1642455231969,9.01131463,3168.6,3168.3,0.00227369]
[1642455232565,9.01131463,3168.6,3167.1,3.7858849]
[1642455232566,9.45,3168.4,3167.1,3.7858849]
[1642455232773,0.02387047,3168.3,3166.8,8.28]
[1642455232965,0.02387047,3168.3,3167.2,0.00402106]
[1642455232966,3.6446,3168.3,3167.2,0.00402106]
[1642455233177,0.00166318,3168.2,3166.9,0.79488063]
[1642455233628,0.00109475,3168.1,3167.0,0.00515791]
[1642455233841,0.00109475,3168.1,3167.0,0.79431791]
[1642455234028,1.11756285,3167.5,3167.0,0.79431791]
[1642455234331,1.11756285,3167.5,3167.1,0.00458948]
[1642455235936,1.19039754,3167.4,3167.1,0.00458948]
[1642455236342,1.19039754,3167.4,3167.1,0.79369948]
[1642455236538,1.11756285,3167.5,3167.2,0.04987745]
[1642455236745,1.11756285,3167.5,3167.2,0.05389851]
[1642455237036,1.11756285,3167.5,3167.3,0.02574041]
[1642455237240,1.11756285,3167.5,3167.3,0.00345263]
[1642455237469,1.11756285,3167.5,3167.4,0.00288421]
[1642455237672,1.11756285,3167.5,3167.2,0.00402106]
[1642455238083,1.11756285,3167.5,3167.1,0.00458948]
[1642455238984,1.42367067,3167.6,3167.1,0.00458948]
[1642455239190,9.09885391,3168.2,3167.4,0.78907]
[1642455239191,1.13296318,3168.2,3167.4,0.78907]
[1642455239377,0.00109475,3168.1,3167.4,1.57813]
[1642455239580,0.00109475,3168.1,3167.5,0.00231579]
[1642455240391,0.00109475,3168.1,3167.5,3.97332871]
[1642455240678,2.70126657,3168.1,3167.6,0.89305536]
[1642455240874,2.70126657,3168.1,3167.7,3.81858883]
[1642455241119,2.70126657,3168.1,3167.7,0.0716469]
[1642455241524,0.00109475,3168.1,3167.7,0.0716469]
[1642455241729,0.00109475,3168.1,3167.7,1.28922993]
[1642455242126,0.00109475,3168.1,3167.8,0.10851926]
[1642455242321,0.00109475,3168.1,3167.9,0.01285038]
[1642455242533,0.00109475,3168.1,3167.8,0.85927796]
[1642455243520,7.5498292,3168.6,3167.9,1.57762]
[1642455243935,0.0022737,3168.5,3167.9,1.57875684]
[1642455244324,0.00170527,3168.4,3167.9,1.57875684]
[1642455244904,0.00113685,3168.3,3168.0,0.02796068]
[1642455245291,0.00113685,3168.3,3168.0,0.7888964]
[1642455245490,0.00113685,3168.3,3168.1,0.03054103]
[1642455245693,0.00113685,3168.3,3168.1,1.60814103]
[1642455245891,0.00113685,3168.3,3168.1,3.1551821]
[1642455246509,0.00113685,3168.3,3168.2,1.54204496]
[1642455247211,0.00113685,3168.3,3168.2,3.71923416]
[1642455247462,6.26289475,3168.6,3168.3,8.18866]
[1642455247602,6.26289475,3168.6,3168.4,0.81643636]
[1642455247811,0.00113685,3168.5,3168.4,0.78868]
[1642455249585,0.00113685,3168.5,3168.4,6.98868]
[1642455251522,0.00113685,3168.5,3168.4,0.85914796]
[1642455251937,0.00113685,3168.5,3168.4,0.78868]
[1642455253364,0.00113685,3168.5,3168.4,4.78868]
[1642455253767,0.00113685,3168.5,3168.4,0.78868]
[1642455256622,0.00113685,3168.5,3168.4,0.85914796]
[1642455258018,0.00113685,3168.5,3168.4,1.23814796]
[1642455258231,6.26289475,3168.6,3168.5,10.0]
[1642455258619,6.26289475,3168.6,3168.5,10.07046796]
[1642455258930,3.7719,3169.2,3169.1,1.08142103]
[1642455259119,3.6509,3169.5,3168.7,0.78859]
[1642455259323,0.00341054,3169.1,3168.8,0.02379386]
[1642455259523,0.00341054,3169.1,3168.7,0.78859]
[1642455259731,3.7924,3169.8,3168.8,0.44946796]
[1642455259974,3.7924,3169.8,3169.1,0.78843]
[1642455260271,0.00397897,3169.7,3169.3,0.02496188]
[1642455260515,0.00397897,3169.7,3169.4,1.16041298]
[1642455260668,3.7924,3169.8,3169.2,1.16749]
[1642455260669,0.00341054,3169.6,3169.2,1.16749]
[1642455261070,0.00284212,3169.5,3169.2,1.16749]
[1642455261608,0.0022737,3169.4,3169.3,1.57697]
[1642455261790,0.0022737,3169.4,3169.2,1.16749]
[1642455262175,0.00170527,3169.3,3169.2,1.16749]
[1642455263174,0.00170527,3169.3,3169.2,0.379]
[1642455265523,0.00170527,3169.3,3169.2,1.16757]
[1642455265937,0.00170527,3169.3,3169.2,0.379]
[1642455266127,0.00170527,3169.3,3168.8,0.00113684]
[1642455266324,1.13308792,3169.2,3168.8,0.00113684]
[1642455266534,1.13308792,3169.2,3168.0,0.00568423]
[1642455266535,1.38928323,3169.1,3168.0,0.00568423]
[1642455266723,1.38928323,3169.1,3167.9,0.00625265]
[1642455267025,1.38928323,3169.1,3167.9,0.78892]
[1642455267381,1.38928323,3169.1,3168.0,0.00568423]
[1642455267772,1.44360294,3168.1,3168.0,0.00568423]
[1642455268173,1.44360294,3168.1,3167.8,0.79574108]
[1642455268571,1.44360294,3168.1,3167.9,0.00625265]
[1642455268980,1.34286194,3168.1,3167.9,0.00625265]
[1642455269581,1.1859,3168.8,3167.9,0.00625265]
[1642455269778,1.1859,3168.8,3168.0,0.04642363]
[1642455269983,1.1859,3168.8,3167.9,0.00625265]
[1642455270212,1.1859,3168.8,3168.1,0.00511581]
[1642455270378,1.1859,3168.8,3168.0,0.78889]
[1642455270587,1.23515935,3168.7,3168.1,0.00288421]
[1642455272029,1.23515935,3168.7,3167.9,0.00402105]
[1642455272222,1.42988104,3168.0,3167.9,0.00402105]
[1642455273223,6.07988104,3168.0,3167.5,0.00629475]
[1642455273424,0.0174579,3167.9,3167.2,0.00800002]
[1642455273731,1.18225071,3167.3,3167.2,0.00800002]
[1642455273928,9.28225071,3167.3,3167.2,0.00576842]
[1642455274126,1.18225071,3167.3,3167.2,0.00576842]
[1642455274329,1.18225071,3167.3,3166.5,0.00974738]
[1642455274605,1.46936347,3166.7,3166.5,0.00974738]
[1642455276393,1.13115763,3166.8,3166.6,0.04828769]
[1642455276776,1.13115763,3166.8,3166.7,0.00861054]
[1642455277175,1.13115763,3166.8,3166.6,0.00694736]
[1642455277586,1.14562875,3167.0,3166.6,0.00694736]
[1642455277834,1.14562875,3167.0,3166.6,0.07046787]
[1642455278276,1.14562875,3167.0,3166.7,0.00637894]
[1642455279221,1.20592568,3166.9,3166.7,0.00637894]
[1642455281420,1.20592568,3166.9,3166.0,0.0103579]
[1642455281818,1.20592568,3166.9,3165.8,0.01149475]
[1642455282030,1.16853058,3166.2,3165.8,0.01149475]
[1642455282466,1.16853058,3166.2,3165.7,8.24149475]
[1642455282679,0.00170527,3166.1,3165.7,8.24149475]
[1642455282869,0.00170527,3166.1,3165.6,8.20951]
[1642455283073,0.00113685,3166.0,3165.6,8.20951]
[1642455283269,0.00113685,3166.0,3165.6,7.4177684]
[1642455283469,0.00170527,3166.1,3165.6,0.78951]
[1642455283769,0.00113685,3166.0,3165.6,0.78951]
[1642455284170,1.4745128,3165.9,3165.6,0.78951]
[1642455284777,1.4745128,3165.9,3165.6,0.73951]
[1642455285382,1.4245128,3165.9,3165.6,0.73951]
[1642455286232,1.4245128,3165.9,3165.7,0.07046787]
[1642455286520,1.4245128,3165.9,3165.7,0.09593861]
[1642455286725,1.4245128,3165.9,3165.7,0.07046787]
[1642455287322,0.00170527,3166.1,3165.8,0.0702157]
[1642455287737,0.00113685,3166.0,3165.7,0.07046787]
[1642455288142,0.00170527,3166.1,3165.7,0.07046787]
[1642455288432,0.00113685,3166.0,3165.7,0.07046787]
[1642455288825,1.18027249,3165.9,3165.7,0.07046787]
[1642455289224,0.00170527,3166.1,3165.7,0.11673483]
[1642455289428,0.00170527,3166.1,3165.7,0.90397323]
[1642455289683,0.00113685,3166.0,3165.7,0.85770627]
[1642455289893,0.00511581,3166.7,3165.7,1.64712627]
[1642455290087,6.3167,3166.6,3165.8,0.0704735]
[1642455290285,6.32124739,3166.6,3165.7,0.78942]
[1642455290499,0.00397897,3166.5,3166.2,1.38946045]
[1642455290765,6.3167,3166.4,3166.2,1.38946045]
[1642455290888,6.32011054,3166.4,3166.2,1.45993395]
[1642455291085,0.00284212,3166.3,3166.2,1.45993395]
[1642455291288,0.00284212,3166.3,3166.2,0.0704735]
[1642455291487,0.00284212,3166.3,3165.8,1.57875]
[1642455291887,0.0022737,3166.2,3165.8,1.57875]
[1642455292290,0.00170527,3166.1,3165.8,2.70928535]
[1642455292489,0.00170527,3166.1,3165.8,1.91999535]
[1642455292698,6.3167,3166.4,3165.8,1.91999535]
[1642455292699,0.00113685,3166.0,3165.8,1.91999535]
[1642455293095,6.3167,3166.4,3165.8,1.91999535]
[1642455293096,0.00284212,3166.3,3165.8,1.91999535]
[1642455293488,0.0022737,3166.2,3165.8,2.70945535]
[1642455293989,0.00170527,3166.1,3165.8,2.70945535]
[1642455294234,0.00113685,3166.0,3165.9,0.02178303]
[1642455294426,0.00113685,3166.0,3165.8,2.70945535]
[1642455294629,0.00113685,3166.0,3165.9,0.03233548]
[1642455294826,0.00113685,3166.0,3165.8,1.13053535]
[1642455295225,0.00113685,3166.0,3165.7,0.0704735]
[1642455297566,0.01157627,3165.9,3165.7,1.649288]
[1642455297768,0.00113685,3166.0,3165.7,0.8598835]
[1642455298579,0.00113685,3166.0,3165.8,0.02228122]
[1642455299177,0.00113685,3166.0,3165.7,0.8598835]
[1642455300470,0.00113685,3166.0,3165.7,1.6493235]
[1642455300570,0.00113685,3166.0,3165.8,0.91109252]
[1642455300783,0.00113685,3166.0,3165.8,0.85989809]
[1642455301221,0.00113685,3166.0,3165.4,0.07046809]
[1642455301421,0.00113685,3166.0,3165.5,0.7894509]
[1642455301623,0.00113685,3166.0,3165.5,0.79116527]
[1642455302223,0.00113685,3166.0,3165.6,1.57883]
[1642455302423,0.00113685,3166.0,3165.7,0.02320851]
[1642455302647,0.00113685,3166.0,3165.8,0.379]
[1642455302822,0.00113685,3166.0,3165.8,1.16836]
[1642455303027,0.00113685,3166.0,3165.8,1.23882809]
[1642455303226,0.00113685,3166.0,3165.9,16.47046809]
[1642455303430,0.00113685,3166.0,3165.9,0.44946809]
[1642455304227,0.00113685,3166.0,3165.9,0.44723649]
[1642455305079,0.00113685,3166.0,3165.9,0.06823649]
[1642455305272,0.00113685,3166.0,3165.5,0.00170527]
[1642455305678,0.00113685,3166.0,3165.3,0.00284211]
[1642455305879,0.00113685,3166.0,3165.0,0.45046809]
[1642455305880,4.43421185,3166.0,3165.1,0.00397896]
[1642455306075,4.30758823,3166.0,3165.1,0.00397896]
[1642455306379,1.523787,3165.2,3165.1,0.00397896]
[1642455307174,0.00113685,3166.0,3165.1,0.00397896]
[1642455307387,1.42171617,3165.6,3165.1,0.00397896]
[1642455307577,0.00113685,3166.0,3165.1,0.00397896]
[1642455307776,0.00113685,3166.0,3165.3,0.7895806]
[1642455308176,0.00113685,3166.0,3165.4,0.00227369]
[1642455308377,6.3167,3165.9,3165.4,0.00227369]
[1642455308647,1.52951984,3165.6,3165.4,0.00227369]
[1642455308934,1.52951984,3165.6,3165.1,0.00397896]
[1642455309125,1.52951984,3165.6,3165.1,0.79361896]
[1642455309325,1.52951984,3165.6,3165.1,0.00397896]
[1642455309526,1.52951984,3165.6,3165.2,0.00341054]
[1642455309527,1.25385706,3165.5,3165.2,0.00341054]
[1642455309738,1.25385706,3165.5,3165.1,0.00397896]
[1642455309929,0.00397817,3165.4,3165.1,0.00397896]
[1642455310224,3.8916,3165.8,3165.1,0.00397896]
[1642455310225,3.8916,3165.8,3165.1,0.79358896]
[1642455310342,6.3167,3165.9,3165.1,0.79358896]
[1642455310525,6.3167,3165.9,3165.2,0.00341054]
[1642455310726,6.3167,3165.9,3165.2,0.00117894]
[1642455311126,1.18298782,3165.5,3165.2,0.00117894]
[1642455312126,1.39187752,3165.4,3165.1,0.00174736]
[1642455314375,1.39187752,3165.4,3165.1,1.58090346]
[1642455314618,1.18298782,3165.5,3165.2,0.7873384]
[1642455314774,1.1364316,3165.8,3165.3,0.02968191]
[1642455314980,6.3167,3165.7,3165.3,3.89411195]
[1642455315178,6.3167,3165.7,3165.4,1.95785]
[1642455315179,6.31836318,3165.7,3165.4,1.95785]
[1642455315381,0.00109476,3165.6,3165.4,2.02831269]
[1642455315631,0.00109476,3165.6,3165.5,9.37273817]
[1642455315780,0.00109476,3165.6,3165.5,2.41157086]
[1642455315980,0.00109476,3165.6,3165.5,1.23883269]
[1642455316835,0.00109476,3165.6,3165.5,2.66365647]
[1642455317241,0.00109476,3165.6,3165.5,2.66371687]
[1642455317541,0.00109476,3165.6,3165.5,0.44946269]
[1642455318157,0.00109476,3165.6,3165.5,0.379]
[1642455320092,1.34627773,3165.5,3165.2,0.00117894]
[1642455320487,1.34627773,3165.5,3165.1,0.00174736]
[1642455321602,0.00389871,3165.4,3165.1,0.00174736]
[1642455321793,1.34627773,3165.5,3165.1,0.00174736]
[1642455322625,1.34627773,3165.5,3164.3,0.78973]
[1642455322626,9.65,3165.4,3164.7,0.13671573]
[1642455322792,0.02194041,3165.3,3164.7,0.13671573]
[1642455323011,0.00113685,3165.3,3164.8,0.00170527]
[1642455323651,1.56337035,3165.0,3164.8,0.00170527]
[1642455323824,7.71165825,3164.9,3164.8,0.00170527]
[1642455324022,7.71165825,3164.9,3164.2,0.00511581]
[1642455324746,2.59579122,3164.4,3164.2,0.00511581]
[1642455325226,6.3167,3164.9,3164.3,100.0]
[1642455325440,6.3167,3164.9,3164.4,0.0702157]
[1642455325631,6.3167,3164.9,3164.4,0.00397897]
[1642455325835,6.3167,3164.9,3164.1,0.47560081]
[1642455325836,6.3167,3164.9,3164.5,0.00341054]
[1642455326038,6.3167,3164.9,3164.2,0.00511581]
[1642455326441,1.47042559,3164.5,3164.2,0.00511581]
[1642455326640,6.3167,3164.4,3164.2,0.00511581]
[1642455327033,6.3167,3164.4,3164.3,100.0]
[1642455327230,7.42905513,3164.4,3164.3,100.0]
[1642455327481,7.42905513,3164.4,3164.3,100.00454739]
[1642455329006,6.3167,3164.4,3164.3,100.00454739]
[1642455332731,6.3167,3164.4,3164.3,101.25132208]
[1642455332931,6.3167,3164.4,3164.3,101.32178477]
[1642455333132,6.3167,3164.4,3164.3,101.70078477]
[1642455333533,0.00113685,3165.3,3164.5,0.7895919]
[1642455333734,0.00113685,3165.3,3164.7,0.05631987]
[1642455333945,0.00113685,3165.3,3164.8,0.78959]
[1642455334132,6.319,3165.2,3164.9,1.21121032]
[1642455334371,6.319,3165.2,3164.9,1.21234717]
[1642455335184,6.319,3165.2,3165.1,0.78959]
[1642455335433,6.319,3165.2,3165.1,1.16859]
[1642455339431,6.319,3165.2,3165.1,0.379]
[1642455343893,6.319,3165.2,3165.1,4.1749931]
[1642455344080,0.00356,3165.2,3165.1,11.19946269]
[1642455344344,5.36009997,3166.4,3165.2,12.75]
[1642455344480,5.36009997,3166.4,3165.5,1.5788524]
[1642455344481,5.2219,3166.4,3165.5,1.5788524]
[1642455344682,0.00568423,3166.3,3165.7,0.78944]
[1642455344893,0.00568423,3166.3,3166.0,1.22047446]
[1642455345120,0.00511581,3166.2,3166.0,1.22047446]
[1642455345487,0.00454738,3166.1,3166.0,1.22047446]
[1642455349251,0.00454738,3166.1,3166.0,2.00989446]
[1642455349877,0.00454738,3166.1,3166.0,1.24605104]
[1642455350278,0.00454738,3166.1,3166.0,2.03547104]
[1642455350780,3.8295,3166.7,3166.4,0.00766966]
[1642455350979,6.316,3166.6,3166.4,0.00766966]
[1642455351181,6.31884212,3166.6,3166.4,0.00766966]
[1642455354354,6.31884212,3166.6,3166.4,0.79707966]
[1642455354570,6.31884212,3166.6,3166.4,0.00766966]
[1642455354957,6.31884212,3166.6,3166.5,0.01605413]
[1642455355164,6.31884212,3166.6,3166.5,1.57592762]
[1642455355761,9.02052668,3166.6,3166.5,1.57592762]
[1642455356158,9.02052668,3166.6,3166.4,1.57864]
[1642455356358,9.02052668,3166.6,3166.3,0.78942]
[1642455356565,1.10016595,3166.5,3165.5,1.57874]
[1642455356762,1.10016595,3166.5,3165.2,4.71909]
[1642455356957,0.00170527,3166.4,3165.8,0.00170527]
[1642455357211,1.53012854,3166.3,3165.8,0.00170527]
[1642455357394,0.00113685,3166.3,3165.9,1.57886]
[1642455357790,0.00113685,3166.3,3166.0,0.02383343]
[1642455357980,0.00113685,3166.3,3165.9,1.57886]
[1642455358780,0.00113685,3166.3,3165.9,2.36828]
[1642455360181,0.00113685,3166.3,3165.9,3.1576744]
[1642455360886,0.00113685,3166.3,3165.9,1.57886]
[1642455361330,0.00113685,3166.3,3165.9,2.36828]
[1642455362130,0.00113685,3166.3,3165.9,1.57886]
[1642455362835,1.51397743,3166.0,3165.8,0.00170527]
[1642455363043,1.52680593,3166.0,3165.8,0.00170527]
[1642455363245,6.316,3165.9,3165.1,0.00568423]
[1642455363438,1.54682255,3165.3,3165.1,0.00568423]
[1642455363832,6.316,3165.2,3165.1,0.00568423]
[1642455364033,7.5449708,3165.2,3165.1,0.00568423]
[1642455364660,6.316,3165.2,3165.1,0.00568423]
[1642455365695,7.45760493,3165.2,3165.1,0.00568423]
[1642455366314,6.316,3165.2,3165.1,0.00568423]
[1642455367096,6.316,3165.2,3165.0,0.95568423]
[1642455367705,6.316,3165.2,3165.0,0.98654901]
[1642455367906,6.316,3165.2,3165.0,0.95568423]
[1642455368196,6.316,3165.2,3165.0,3.32425423]
[1642455368413,3.9962,3166.2,3165.1,18.2]
[1642455368651,3.9962,3166.2,3165.2,0.06704669]
[1642455368833,0.00568423,3166.1,3165.8,1.35996834]
[1642455369100,6.3172,3166.0,3165.8,1.35996834]
[1642455369231,6.32231581,3166.0,3165.8,2.14949834]
[1642455369538,0.00454739,3165.9,3165.8,2.14949834]
[1642455370534,0.54495078,3165.9,3165.8,2.14949834]
[1642455371737,0.54495078,3165.9,3165.8,3.72828834]
[1642455371938,0.00454739,3165.9,3165.8,3.72828834]
[1642455374604,6.3172,3166.0,3165.8,3.72828834]
[1642455374817,6.3172,3166.0,3165.9,15.6]
[1642455374998,6.3172,3166.0,3165.9,16.0336]
[1642455375182,4.05294583,3167.0,3165.9,16.0328]
[1642455375381,4.05294583,3167.0,3166.5,0.78926]
[1642455375686,4.05294583,3167.0,3166.5,1.84956]
[1642455375687,0.00568423,3166.9,3166.5,1.84956]
[1642455376146,0.00511581,3166.8,3166.5,1.84956]
[1642455376339,0.00511581,3166.8,3166.5,5.0064396]
[1642455376340,0.00277,3166.7,3166.5,5.0064396]
[1642455376536,0.00277,3166.7,3166.6,16.0482]
[1642455376537,0.00731738,3166.7,3166.6,16.0482]
[1642455376736,0.00277,3166.7,3166.6,15.929]
[1642455376933,5.06787218,3167.6,3166.8,8.0]
[1642455377136,5.06787218,3167.6,3167.4,1.4187178]
[1642455377337,6.32319477,3167.5,3167.4,1.4187178]
[1642455377535,6.32319477,3167.5,3167.3,0.78906]
[1642455377735,6.32319477,3167.5,3167.2,1.57812]
[1642455377933,0.00852635,3167.4,3167.2,1.57812]
[1642455378334,0.00795793,3167.3,3167.2,1.57812]
[1642455379980,0.00795793,3167.3,3167.2,2.88973184]
[1642455380181,2.70887718,3167.3,3167.2,2.88973184]
[1642455381390,6.3141,3167.5,3167.2,2.88973184]
[1642455381588,6.3141,3167.5,3167.3,3.19210873]
[1642455381781,6.3141,3167.5,3167.3,3.1557988]
[1642455382183,6.3141,3167.5,3167.3,3.9447588]
[1642455384445,6.3141,3167.5,3167.4,8.28893]
[1642455384744,4.168,3168.0,3167.4,8.28893]
[1642455384745,4.168,3168.0,3167.5,18.2]
[1642455384954,4.168,3168.0,3167.6,1.16784]
[1642455385162,4.168,3168.0,3167.7,0.0702157]
[1642455385163,0.00341054,3167.9,3167.7,0.0702157]
[1642455385350,1.40347218,3168.4,3167.8,14.02033149]
[1642455385651,0.00227369,3168.3,3167.9,0.379]
[1642455386053,0.00170527,3168.2,3167.9,0.379]
[1642455386250,4.05294583,3168.6,3168.1,16.95]
[1642455386477,4.05294583,3168.6,3168.1,17.8608]
[1642455386649,0.00170527,3168.5,3168.2,1.57736]
[1642455387048,4.05294583,3168.6,3168.2,1.57736]
[1642455387049,0.00113684,3168.4,3168.3,1.58567239]
[1642455387250,4.05294583,3168.6,3168.4,4.0]
[1642455387492,4.05294583,3168.6,3168.4,0.78867]
[1642455387682,6.63583764,3169.3,3168.6,0.78868]
[1642455387683,2.69973118,3169.1,3168.6,0.78868]
[1642455388197,0.0022737,3168.8,3168.6,0.78868]
[1642455388396,0.0022737,3168.8,3168.5,1.57735]
[1642455388597,0.00170527,3168.7,3168.3,1.57733]
[1642455388783,0.00170527,3168.7,3168.0,2.50443268]
[1642455388784,7.2769117,3168.1,3168.0,2.50443268]
[1642455388982,7.2769117,3168.1,3168.0,3.50113685]
[1642455388983,1.2769117,3168.1,3168.0,3.50113685]
[1642455389262,1.2769117,3168.1,3168.0,0.00227369]
[1642455389388,1.13053414,3168.1,3168.0,0.79119369]
[1642455389608,1.13053414,3168.1,3168.0,0.78892]
[1642455389788,1.13053414,3168.1,3168.0,0.79119369]
[1642455390286,3.83026532,3168.1,3168.0,0.79119369]
[1642455390698,3.83026532,3168.1,3168.0,0.00227369]
[1642455391335,2.69973118,3168.1,3168.0,0.00227369]
[1642455391631,2.69973118,3168.1,3168.0,0.79114939]
[1642455393334,2.67530563,3168.3,3168.0,0.79114939]
[1642455393537,2.67530563,3168.3,3168.1,0.06552684]
[1642455393734,2.67530563,3168.3,3168.2,0.78883]
[1642455393947,1.49300326,3168.3,3168.2,0.78996684]
[1642455394134,0.00113685,3168.6,3168.2,0.78996684]
[1642455394334,6.3123,3168.5,3168.3,0.02856173]
[1642455394539,6.3123,3168.5,3168.2,0.00113684]
[1642455394995,1.53088016,3168.2,3167.9,0.00284211]
[1642455395186,6.3123,3168.1,3167.9,0.00284211]
[1642455395784,1.22513758,3168.0,3167.9,0.00284211]
[1642455395983,3.92528761,3168.0,3167.9,0.00284211]
[1642455397186,2.70015003,3168.0,3167.9,0.00284211]
[1642455397683,2.70015003,3168.0,3167.9,0.79168211]
[1642455398388,2.70015003,3168.0,3167.9,2.13656701]
[1642455398639,6.3123,3168.1,3167.9,2.43656701]
[1642455399038,6.3123,3168.1,3168.0,8.90227369]
[1642455399954,6.3123,3168.1,3168.0,0.00227369]
[1642455400842,9.01218406,3168.1,3168.0,0.00227369]
[1642455401641,9.01218406,3168.1,3168.0,5.15227369]
[1642455401844,6.3123,3168.1,3168.0,0.38127369]
[1642455402248,0.00249,3168.1,3168.0,10.38127369]
[1642455402690,0.00113685,3168.6,3168.0,10.38127369]
[1642455402884,0.00113685,3168.6,3168.2,0.78873]
[1642455403090,0.00113685,3168.6,3168.2,2.3661659]
[1642455403679,0.00113685,3168.6,3168.3,0.3]
[1642455403885,0.00113685,3168.6,3168.4,0.02573726]
[1642455404084,0.00113685,3168.6,3168.5,7.33916865]
[1642455404283,0.00113685,3168.6,3168.5,2.23916865]
[1642455405285,2.69967993,3169.2,3169.1,1.12634245]
[1642455405752,2.69967993,3169.2,3169.1,1.91492245]
[1642455406540,2.69967993,3169.3,3169.1,1.91492245]
[1642455406939,6.3107,3169.2,3169.1,1.91492245]
[1642455407152,0.00325,3169.2,3169.1,18.74392245]
[1642455407338,0.00325,3169.2,3169.1,2.29392245]
[1642455407643,0.00325,3169.2,3169.1,1.16758]
[1642455407840,0.00325,3169.2,3169.1,0.379]
[1642455408048,0.00325,3169.2,3169.0,1.57715]
[1642455408450,0.00284212,3169.1,3169.0,1.57715]
[1642455409216,0.00284212,3169.1,3168.9,3.0]